[Event "Titled Tuesday Blitz February 28 Early 2023"]
[White "Arabidze, Meri"]
[Black "Molina, Roberto Junio Brito"]
[WhiteFideId "13604040"]
[BlackFideId "2109450"]
[WhiteElo "2405"]
[BlackElo "2376"]
[Result "1/2-1/2"]
[Round "03"]
[TimeControl "180+2"]
[Date "2023.02.28"]
[WhiteClock "0:00:06"]
[BlackClock "0:00:04"]

1. d4 {[%clk 0:03:00]}  d5 {[%clk 0:02:59]} 2. Nf3 {[%clk 0:03:01]}  Nf6 {[%clk 0:02:58]} 3. c4 {[%clk 0:03:01]}  e6 {[%clk 0:02:56]} 4. Bg5 {[%clk 0:03:00]}  Be7 {[%clk 0:02:56]} 5. Nc3 {[%clk 0:03:00]}  O-O {[%clk 0:02:56]} 6. e3 {[%clk 0:03:00]}  Nbd7 {[%clk 0:02:54]} 7. Qc2 {[%clk 0:02:59]}  c6 {[%clk 0:02:53]} 8. Rd1 {[%clk 0:02:59]}  a6 {[%clk 0:02:52]} 9. c5 {[%clk 0:02:47]}  b6 {[%clk 0:02:52]} 10. b4 {[%clk 0:02:44]}  a5 {[%clk 0:02:52]} 11. a3 {[%clk 0:02:44]}  axb4 {[%clk 0:02:46]} 12. axb4 {[%clk 0:02:45]}  bxc5 {[%clk 0:02:46]} 13. bxc5 {[%clk 0:02:46]}  Ba6 {[%clk 0:02:46]} 14. Bxa6 {[%clk 0:02:45]}  Rxa6 {[%clk 0:02:47]} 15. O-O {[%clk 0:02:45]}  Nh5 {[%clk 0:02:37]} 16. Bxe7 {[%clk 0:02:44]}  Qxe7 {[%clk 0:02:37]} 17. Ra1 {[%clk 0:02:43]}  Rfa8 {[%clk 0:02:36]} 18. Qb2 {[%clk 0:02:40]}  Qd8 {[%clk 0:02:34]} 19. Rxa6 {[%clk 0:02:30]}  Rxa6 {[%clk 0:02:35]} 20. Qb7 {[%clk 0:02:30]}  Ra3 {[%clk 0:02:30]} 21. Nb1 {[%clk 0:02:23]}  Ra1 {[%clk 0:02:26]} 22. Qxc6 {[%clk 0:02:22]}  Nhf6 {[%clk 0:02:21]} 23. h3 {[%clk 0:02:08]}  h6 {[%clk 0:02:17]} 24. Nbd2 {[%clk 0:02:05]}  Ra2 {[%clk 0:02:16]} 25. Rb1 {[%clk 0:02:01]}  Qa5 {[%clk 0:02:04]} 26. Qb7 {[%clk 0:01:46]}  Rc2 {[%clk 0:01:53]} 27. c6 {[%clk 0:01:00]}  Nf8 {[%clk 0:01:52]} 28. Qb6 {[%clk 0:00:44]}  Qc3 {[%clk 0:01:13]} 29. Qd8 {[%clk 0:00:28]}  Qxc6 {[%clk 0:01:12]} 30. Rb8 {[%clk 0:00:28]}  Rc1+ {[%clk 0:01:11]} 31. Kh2 {[%clk 0:00:28]}  Qc7+ {[%clk 0:01:11]} 32. Qxc7 {[%clk 0:00:28]}  Rxc7 {[%clk 0:01:11]} 33. Ne5 {[%clk 0:00:29]}  g5 {[%clk 0:01:08]} 34. Nb3 {[%clk 0:00:21]}  Kg7 {[%clk 0:01:05]} 35. Nc5 {[%clk 0:00:21]}  Ng6 {[%clk 0:01:02]} 36. Nxg6 {[%clk 0:00:19]}  Kxg6 {[%clk 0:01:03]} 37. f3 {[%clk 0:00:18]}  Ra7 {[%clk 0:01:00]} 38. Kg3 {[%clk 0:00:17]}  Nh5+ {[%clk 0:00:59]} 39. Kh2 {[%clk 0:00:16]}  Kg7 {[%clk 0:00:57]} 40. Rb7 {[%clk 0:00:15]}  Rxb7 {[%clk 0:00:56]} 41. Nxb7 {[%clk 0:00:16]}  Kf6 {[%clk 0:00:55]} 42. Nc5 {[%clk 0:00:15]}  Ke7 {[%clk 0:00:55]} 43. g4 {[%clk 0:00:14]}  Ng7 {[%clk 0:00:55]} 44. Kg3 {[%clk 0:00:15]}  Kd6 {[%clk 0:00:55]} 45. h4 {[%clk 0:00:15]}  f6 {[%clk 0:00:53]} 46. Nd3 {[%clk 0:00:15]}  Kc6 {[%clk 0:00:53]} 47. f4 {[%clk 0:00:14]}  gxh4+ {[%clk 0:00:47]} 48. Kxh4 {[%clk 0:00:14]}  Kb5 {[%clk 0:00:48]} 49. Nc5 {[%clk 0:00:08]}  Kc4 {[%clk 0:00:46]} 50. Nd7 {[%clk 0:00:06]}  Kd3 {[%clk 0:00:42]} 51. Nxf6 {[%clk 0:00:06]}  Kxe3 {[%clk 0:00:43]} 52. g5 {[%clk 0:00:03]}  hxg5+ {[%clk 0:00:40]} 53. fxg5 {[%clk 0:00:03]}  Kxd4 {[%clk 0:00:40]} 54. g6 {[%clk 0:00:04]}  Ke5 {[%clk 0:00:39]} 55. Kg5 {[%clk 0:00:04]}  d4 {[%clk 0:00:37]} 56. Ng4+ {[%clk 0:00:05]}  Kd6 {[%clk 0:00:32]} 57. Kf6 {[%clk 0:00:05]}  Nh5+ {[%clk 0:00:32]} 58. Kf7 {[%clk 0:00:05]}  e5 {[%clk 0:00:29]} 59. Nf6 {[%clk 0:00:04]}  d3 {[%clk 0:00:24]} 60. Nxh5 {[%clk 0:00:03]}  d2 {[%clk 0:00:24]} 61. g7 {[%clk 0:00:03]}  d1=Q {[%clk 0:00:24]} 62. Nf6 {[%clk 0:00:03]}  Qb3+ {[%clk 0:00:23]} 63. Kg6 {[%clk 0:00:03]}  Qg3+ {[%clk 0:00:21]} 64. Kf7 {[%clk 0:00:03]}  Qb3+ {[%clk 0:00:14]} 65. Kg6 {[%clk 0:00:03]}  Qc2+ {[%clk 0:00:11]} 66. Kf7 {[%clk 0:00:03]}  Qa2+ {[%clk 0:00:11]} 67. Kg6 {[%clk 0:00:03]}  Qb1+ {[%clk 0:00:12]} 68. Kf7 {[%clk 0:00:04]}  Qg1 {[%clk 0:00:03]} 69. g8=Q {[%clk 0:00:03]}  Qxg8+ {[%clk 0:00:03]} 70. Kxg8 {[%clk 0:00:04]}  Ke6 {[%clk 0:00:04]} 71. Kg7 {[%clk 0:00:05]}  Kf5 {[%clk 0:00:04]} 72. Kf7 {[%clk 0:00:05]}  e4 {[%clk 0:00:04]} 73. Nxe4 {[%clk 0:00:06]} 1/2-1/2


[Site "https://www.chess.com"]

[Event "Titled Tuesday Blitz February 28 Early 2023"]
[White "Janaszak, Dawid"]
[Black "Movahed, Sina"]
[WhiteFideId "1119206"]
[BlackFideId "42520835"]
[WhiteElo "2220"]
[BlackElo "2225"]
[Result "0-1"]
[Round "03"]
[TimeControl "180+2"]
[Date "2023.02.28"]
[WhiteClock "0:00:05"]
[BlackClock "0:00:18"]

1. e4 {[%clk 0:03:00]}  c5 {[%clk 0:02:59]} 2. Nc3 {[%clk 0:02:59]}  Nc6 {[%clk 0:02:59]} 3. Bb5 {[%clk 0:02:58]}  Nd4 {[%clk 0:02:57]} 4. Nf3 {[%clk 0:02:59]}  a6 {[%clk 0:02:57]} 5. Bd3 {[%clk 0:02:58]}  Nc6 {[%clk 0:02:58]} 6. O-O {[%clk 0:02:54]}  g6 {[%clk 0:02:57]} 7. Re1 {[%clk 0:02:48]}  d6 {[%clk 0:02:56]} 8. Nd5 {[%clk 0:02:37]}  Bg7 {[%clk 0:02:50]} 9. c3 {[%clk 0:02:36]}  Nf6 {[%clk 0:02:41]} 10. Bc2 {[%clk 0:02:34]}  Bg4 {[%clk 0:02:41]} 11. h3 {[%clk 0:02:32]}  Bxf3 {[%clk 0:02:40]} 12. Qxf3 {[%clk 0:02:33]}  Nd7 {[%clk 0:02:40]} 13. d3 {[%clk 0:02:28]}  e6 {[%clk 0:02:38]} 14. Ne3 {[%clk 0:02:27]}  O-O {[%clk 0:02:36]} 15. Ng4 {[%clk 0:02:23]}  Kh8 {[%clk 0:01:50]} 16. Qg3 {[%clk 0:02:03]}  h5 {[%clk 0:01:45]} 17. Nh2 {[%clk 0:01:53]}  Kg8 {[%clk 0:01:16]} 18. Bg5 {[%clk 0:01:50]}  Qb6 {[%clk 0:01:13]} 19. Rab1 {[%clk 0:01:44]}  Rfe8 {[%clk 0:00:58]} 20. Kh1 {[%clk 0:01:36]}  d5 {[%clk 0:00:54]} 21. Nf3 {[%clk 0:01:24]}  d4 {[%clk 0:00:52]} 22. Bf4 {[%clk 0:01:06]}  Qa5 {[%clk 0:00:49]} 23. Bc7 {[%clk 0:00:54]}  Qxa2 {[%clk 0:00:42]} 24. Qd6 {[%clk 0:00:43]}  Nde5 {[%clk 0:00:36]} 25. Qxc5 {[%clk 0:00:34]}  Nxf3 {[%clk 0:00:35]} 26. gxf3 {[%clk 0:00:35]}  dxc3 {[%clk 0:00:34]} 27. e5 {[%clk 0:00:25]}  cxb2 {[%clk 0:00:33]} 28. Qb6 {[%clk 0:00:19]}  Qd5 {[%clk 0:00:28]} 29. Re4 {[%clk 0:00:19]}  Nxe5 {[%clk 0:00:24]} 30. Rxb2 {[%clk 0:00:09]}  Nxd3 {[%clk 0:00:20]} 31. Bb3 {[%clk 0:00:05]}  Qf5 {[%clk 0:00:18]} 0-1


[Site "https://www.chess.com"]

[Event "Titled Tuesday Blitz February 28 Early 2023"]
[White "Postma, Dinant"]
[Black "Sattarov, Bobir"]
[WhiteFideId "1018612"]
[BlackFideId "14203081"]
[WhiteElo "2567"]
[BlackElo "2351"]
[Result "1-0"]
[Round "03"]
[TimeControl "180+2"]
[Date "2023.02.28"]
[WhiteClock "0:00:17"]
[BlackClock "0:00:30"]

1. d4 {[%clk 0:03:00]}  Nf6 {[%clk 0:02:53]} 2. Bg5 {[%clk 0:03:00]}  Ne4 {[%clk 0:02:51]} 3. Bf4 {[%clk 0:03:00]}  d5 {[%clk 0:02:51]} 4. e3 {[%clk 0:03:00]}  c5 {[%clk 0:02:51]} 5. Bd3 {[%clk 0:03:00]}  cxd4 {[%clk 0:02:50]} 6. exd4 {[%clk 0:03:00]}  Nc6 {[%clk 0:02:49]} 7. Bxe4 {[%clk 0:03:00]}  dxe4 {[%clk 0:02:50]} 8. Ne2 {[%clk 0:03:01]}  e6 {[%clk 0:02:42]} 9. Nbc3 {[%clk 0:02:51]}  f5 {[%clk 0:02:19]} 10. d5 {[%clk 0:02:44]}  exd5 {[%clk 0:02:20]} 11. Qxd5 {[%clk 0:02:38]}  Qxd5 {[%clk 0:02:05]} 12. Nxd5 {[%clk 0:02:39]}  Kf7 {[%clk 0:02:04]} 13. Nc7 {[%clk 0:02:30]}  Rb8 {[%clk 0:02:04]} 14. O-O-O {[%clk 0:02:30]}  Be7 {[%clk 0:01:56]} 15. Nd5 {[%clk 0:02:11]}  Ra8 {[%clk 0:01:56]} 16. Nxe7 {[%clk 0:02:11]}  Nxe7 {[%clk 0:01:57]} 17. Rd6 {[%clk 0:02:01]}  Ng6 {[%clk 0:01:55]} 18. Rhd1 {[%clk 0:01:42]}  Be6 {[%clk 0:01:53]} 19. Bg3 {[%clk 0:01:38]}  Rac8 {[%clk 0:01:47]} 20. h4 {[%clk 0:01:31]}  h5 {[%clk 0:01:46]} 21. Kb1 {[%clk 0:01:21]}  Rhe8 {[%clk 0:01:42]} 22. Nf4 {[%clk 0:01:17]}  Nxf4 {[%clk 0:01:41]} 23. Bxf4 {[%clk 0:01:18]}  Rc6 {[%clk 0:01:38]} 24. Rxc6 {[%clk 0:01:13]}  bxc6 {[%clk 0:01:39]} 25. b3 {[%clk 0:01:14]}  Rc8 {[%clk 0:01:34]} 26. Kb2 {[%clk 0:01:12]}  Ke7 {[%clk 0:01:25]} 27. Bg5+ {[%clk 0:01:07]}  Kf7 {[%clk 0:01:25]} 28. Rd6 {[%clk 0:01:05]}  a5 {[%clk 0:01:18]} 29. a4 {[%clk 0:00:52]}  Bd5 {[%clk 0:01:13]} 30. Rd7+ {[%clk 0:00:48]}  Kf8 {[%clk 0:00:50]} 31. Ra7 {[%clk 0:00:42]}  e3 {[%clk 0:00:40]} 32. fxe3 {[%clk 0:00:41]}  Bxg2 {[%clk 0:00:40]} 33. Rxa5 {[%clk 0:00:41]}  Be4 {[%clk 0:00:41]} 34. Ra7 {[%clk 0:00:31]}  c5 {[%clk 0:00:40]} 35. Kc3 {[%clk 0:00:30]}  c4 {[%clk 0:00:38]} 36. b4 {[%clk 0:00:29]}  g6 {[%clk 0:00:36]} 37. b5 {[%clk 0:00:27]}  Rb8 {[%clk 0:00:34]} 38. Bf4 {[%clk 0:00:24]}  Rd8 {[%clk 0:00:32]} 39. b6 {[%clk 0:00:21]}  Ra8 {[%clk 0:00:28]} 40. Rxa8+ {[%clk 0:00:18]}  Bxa8 {[%clk 0:00:29]} 41. Kxc4 {[%clk 0:00:18]}  Ke7 {[%clk 0:00:29]} 42. a5 {[%clk 0:00:17]}  Kd7 {[%clk 0:00:30]} 43. a6 {[%clk 0:00:17]} 1-0


[Site "https://www.chess.com"]

[Event "Titled Tuesday Blitz February 28 Early 2023"]
[White "Bews, Steven"]
[Black "Golubka, Petro"]
[WhiteFideId "2400529"]
[BlackFideId "14114224"]
[WhiteElo "2547"]
[BlackElo "2404"]
[Result "1-0"]
[Round "03"]
[TimeControl "180+2"]
[Date "2023.02.28"]
[WhiteClock "0:00:32"]
[BlackClock "0:00:16"]

1. e4 {[%clk 0:03:00]}  c5 {[%clk 0:00:46]} 2. Nf3 {[%clk 0:03:00]}  Nc6 {[%clk 0:00:46]} 3. d4 {[%clk 0:03:00]}  cxd4 {[%clk 0:00:47]} 4. Nxd4 {[%clk 0:03:01]}  Nf6 {[%clk 0:00:48]} 5. Nc3 {[%clk 0:02:59]}  e6 {[%clk 0:00:48]} 6. Ndb5 {[%clk 0:02:53]}  d6 {[%clk 0:00:47]} 7. Bf4 {[%clk 0:02:52]}  e5 {[%clk 0:00:47]} 8. Bg5 {[%clk 0:02:53]}  a6 {[%clk 0:00:48]} 9. Na3 {[%clk 0:02:53]}  b5 {[%clk 0:00:48]} 10. Nd5 {[%clk 0:02:51]}  Be7 {[%clk 0:00:47]} 11. Bxf6 {[%clk 0:02:50]}  Bxf6 {[%clk 0:00:48]} 12. c3 {[%clk 0:02:51]}  O-O {[%clk 0:00:48]} 13. Nc2 {[%clk 0:02:51]}  Be6 {[%clk 0:00:45]} 14. Nce3 {[%clk 0:02:51]}  Bg5 {[%clk 0:00:45]} 15. h4 {[%clk 0:02:49]}  Bxe3 {[%clk 0:00:45]} 16. Nxe3 {[%clk 0:02:50]}  Ne7 {[%clk 0:00:46]} 17. Bd3 {[%clk 0:02:41]}  d5 {[%clk 0:00:47]} 18. exd5 {[%clk 0:02:36]}  Nxd5 {[%clk 0:00:48]} 19. Nxd5 {[%clk 0:02:30]}  Qxd5 {[%clk 0:00:47]} 20. Qe2 {[%clk 0:02:25]}  Rad8 {[%clk 0:00:44]} 21. Be4 {[%clk 0:02:23]}  Qc5 {[%clk 0:00:44]} 22. O-O {[%clk 0:02:19]}  Bc4 {[%clk 0:00:44]} 23. Qh5 {[%clk 0:02:14]}  g6 {[%clk 0:00:43]} 24. Qg5 {[%clk 0:02:10]}  f6 {[%clk 0:00:43]} 25. Qh6 {[%clk 0:02:05]}  Bxf1 {[%clk 0:00:41]} 26. Rxf1 {[%clk 0:01:58]}  Rd7 {[%clk 0:00:41]} 27. h5 {[%clk 0:01:55]}  g5 {[%clk 0:00:40]} 28. Bf5 {[%clk 0:01:53]}  Re7 {[%clk 0:00:37]} 29. Be4 {[%clk 0:01:30]}  Qc4 {[%clk 0:00:34]} 30. Re1 {[%clk 0:01:29]}  Qf7 {[%clk 0:00:32]} 31. Rd1 {[%clk 0:01:27]}  Qg7 {[%clk 0:00:32]} 32. Qxg7+ {[%clk 0:01:24]}  Kxg7 {[%clk 0:00:33]} 33. g4 {[%clk 0:01:25]}  a5 {[%clk 0:00:31]} 34. Rd5 {[%clk 0:01:23]}  Rb8 {[%clk 0:00:30]} 35. Kf1 {[%clk 0:01:21]}  Rc7 {[%clk 0:00:28]} 36. Ke2 {[%clk 0:01:14]}  b4 {[%clk 0:00:28]} 37. Rxa5 {[%clk 0:01:13]}  bxc3 {[%clk 0:00:28]} 38. bxc3 {[%clk 0:01:13]}  Rb2+ {[%clk 0:00:28]} 39. Kf3 {[%clk 0:01:07]}  Rxc3+ {[%clk 0:00:28]} 40. Kg2 {[%clk 0:01:07]}  Rb4 {[%clk 0:00:26]} 41. Ra7+ {[%clk 0:01:07]}  Kf8 {[%clk 0:00:26]} 42. Bf5 {[%clk 0:01:00]}  h6 {[%clk 0:00:24]} 43. Rh7 {[%clk 0:00:57]}  e4 {[%clk 0:00:25]} 44. Rxh6 {[%clk 0:00:55]}  Kf7 {[%clk 0:00:23]} 45. Rh7+ {[%clk 0:00:55]}  Kf8 {[%clk 0:00:23]} 46. Rh8+ {[%clk 0:00:51]}  Kf7 {[%clk 0:00:21]} 47. Rh7+ {[%clk 0:00:51]}  Kf8 {[%clk 0:00:21]} 48. h6 {[%clk 0:00:44]}  e3 {[%clk 0:00:21]} 49. Ra7 {[%clk 0:00:36]}  Rb2 {[%clk 0:00:16]} 50. h7 {[%clk 0:00:32]}  Rxf2+ {[%clk 0:00:16]} 51. Kg3 {[%clk 0:00:32]} 1-0


[Site "https://www.chess.com"]

[Event "Titled Tuesday Blitz February 28 Early 2023"]
[White "Taboas Rodriguez, Daniel"]
[Black "Matinian, Nikita"]
[WhiteFideId "2208466"]
[BlackFideId "24129100"]
[WhiteElo "2365"]
[BlackElo "2422"]
[Result "1-0"]
[Round "03"]
[TimeControl "180+2"]
[Date "2023.02.28"]
[WhiteClock "0:00:19"]
[BlackClock "0:00:01"]

1. d4 {[%clk 0:02:59]}  c5 {[%clk 0:03:00]} 2. d5 {[%clk 0:02:58]}  e5 {[%clk 0:03:00]} 3. c4 {[%clk 0:02:57]}  d6 {[%clk 0:03:00]} 4. Nc3 {[%clk 0:02:58]}  Be7 {[%clk 0:03:00]} 5. Nf3 {[%clk 0:02:57]}  Nd7 {[%clk 0:02:58]} 6. e4 {[%clk 0:02:57]}  Nf8 {[%clk 0:02:58]} 7. h3 {[%clk 0:02:55]}  h5 {[%clk 0:02:58]} 8. Bd3 {[%clk 0:02:51]}  h4 {[%clk 0:02:58]} 9. a3 {[%clk 0:02:49]}  b6 {[%clk 0:02:49]} 10. Bc2 {[%clk 0:02:49]}  g5 {[%clk 0:02:47]} 11. Ba4+ {[%clk 0:02:48]}  Bd7 {[%clk 0:02:47]} 12. b4 {[%clk 0:02:45]}  f6 {[%clk 0:02:31]} 13. Bc6 {[%clk 0:02:44]}  Rc8 {[%clk 0:02:27]} 14. b5 {[%clk 0:02:44]}  Ng6 {[%clk 0:02:28]} 15. a4 {[%clk 0:02:41]}  Nh6 {[%clk 0:02:22]} 16. a5 {[%clk 0:02:40]}  Nf4 {[%clk 0:02:22]} 17. Bxf4 {[%clk 0:02:37]}  exf4 {[%clk 0:02:18]} 18. axb6 {[%clk 0:02:37]}  axb6 {[%clk 0:02:18]} 19. Ra7 {[%clk 0:02:37]}  Rc7 {[%clk 0:02:14]} 20. Qa4 {[%clk 0:02:37]}  Kf7 {[%clk 0:02:06]} 21. Kd2 {[%clk 0:02:27]}  Kg7 {[%clk 0:02:02]} 22. Ra1 {[%clk 0:02:25]}  Nf7 {[%clk 0:01:46]} 23. Rxc7 {[%clk 0:02:18]}  Qxc7 {[%clk 0:01:46]} 24. Qa7 {[%clk 0:02:19]}  Qxa7 {[%clk 0:01:25]} 25. Rxa7 {[%clk 0:02:20]}  Bxc6 {[%clk 0:01:26]} 26. dxc6 {[%clk 0:02:02]}  Bd8 {[%clk 0:01:26]} 27. c7 {[%clk 0:01:59]}  Bxc7 {[%clk 0:01:25]} 28. Rxc7 {[%clk 0:01:58]}  Ra8 {[%clk 0:01:22]} 29. Nd5 {[%clk 0:01:56]}  Ra2+ {[%clk 0:01:21]} 30. Ke1 {[%clk 0:01:54]}  Ra1+ {[%clk 0:01:21]} 31. Ke2 {[%clk 0:01:54]}  Ra2+ {[%clk 0:01:21]} 32. Nd2 {[%clk 0:01:54]}  Kg6 {[%clk 0:00:59]} 33. Ne7+ {[%clk 0:01:54]}  Kh5 {[%clk 0:00:59]} 34. Nf5 {[%clk 0:01:29]}  Ne5 {[%clk 0:01:00]} 35. Nxd6 {[%clk 0:01:29]}  f3+ {[%clk 0:00:50]} 36. gxf3 {[%clk 0:01:29]}  Ra3 {[%clk 0:00:38]} 37. Ne8 {[%clk 0:01:02]}  Kg6 {[%clk 0:00:37]} 38. Rg7+ {[%clk 0:00:59]}  Kh6 {[%clk 0:00:36]} 39. Rb7 {[%clk 0:00:59]}  Nd3 {[%clk 0:00:34]} 40. Rxb6 {[%clk 0:00:58]}  Nf4+ {[%clk 0:00:33]} 41. Kd1 {[%clk 0:00:59]}  Nxh3 {[%clk 0:00:30]} 42. Nxf6 {[%clk 0:00:59]}  Nxf2+ {[%clk 0:00:26]} 43. Ke2 {[%clk 0:00:56]}  Nd3 {[%clk 0:00:24]} 44. Ng4+ {[%clk 0:00:53]}  Kg7 {[%clk 0:00:25]} 45. Rb7+ {[%clk 0:00:43]}  Kg6 {[%clk 0:00:24]} 46. b6 {[%clk 0:00:43]}  h3 {[%clk 0:00:17]} 47. Rb8 {[%clk 0:00:42]}  Nf4+ {[%clk 0:00:16]} 48. Kd1 {[%clk 0:00:42]}  Ra1+ {[%clk 0:00:09]} 49. Kc2 {[%clk 0:00:41]}  Ra2+ {[%clk 0:00:09]} 50. Kb3 {[%clk 0:00:25]}  Rxd2 {[%clk 0:00:09]} 51. b7 {[%clk 0:00:25]}  Rd3+ {[%clk 0:00:08]} 52. Kc2 {[%clk 0:00:23]}  Rxf3 {[%clk 0:00:02]} 53. Rg8+ {[%clk 0:00:22]}  Kh5 {[%clk 0:00:02]} 54. Nf6+ {[%clk 0:00:22]}  Kh4 {[%clk 0:00:02]} 55. b8=Q {[%clk 0:00:21]}  h2 {[%clk 0:00:02]} 56. Rh8+ {[%clk 0:00:20]}  Kg3 {[%clk 0:00:03]} 57. Qc8 {[%clk 0:00:19]}  Rf2+ {[%clk 0:00:01]} 58. Kb3 {[%clk 0:00:18]}  Rf3+ {[%clk 0:00:01]} 59. Ka4 {[%clk 0:00:19]} 1-0


[Site "https://www.chess.com"]

[Event "Titled Tuesday Blitz February 28 Early 2023"]
[White "Turzo, Attila"]
[Black "Van Foreest, Jorden"]
[WhiteFideId "704954"]
[BlackFideId "1039784"]
[WhiteElo "2528"]
[BlackElo "2633"]
[Result "1-0"]
[Round "03"]
[TimeControl "180+2"]
[Date "2023.02.28"]
[WhiteClock "0:00:12"]
[BlackClock "0:01:10"]

1. e4 {[%clk 0:03:00]}  g6 {[%clk 0:03:00]} 2. d4 {[%clk 0:03:00]}  Bg7 {[%clk 0:03:01]} 3. Nf3 {[%clk 0:03:00]}  d6 {[%clk 0:03:02]} 4. c3 {[%clk 0:03:01]}  a6 {[%clk 0:03:02]} 5. Bd3 {[%clk 0:03:01]}  b6 {[%clk 0:03:03]} 6. O-O {[%clk 0:03:01]}  Bb7 {[%clk 0:03:04]} 7. Re1 {[%clk 0:03:01]}  Nd7 {[%clk 0:03:04]} 8. Nbd2 {[%clk 0:03:01]}  e5 {[%clk 0:03:05]} 9. Nf1 {[%clk 0:03:01]}  Ngf6 {[%clk 0:03:05]} 10. Ng3 {[%clk 0:02:58]}  O-O {[%clk 0:03:05]} 11. d5 {[%clk 0:02:52]}  b5 {[%clk 0:02:59]} 12. a4 {[%clk 0:02:52]}  c6 {[%clk 0:02:59]} 13. axb5 {[%clk 0:02:24]}  axb5 {[%clk 0:02:59]} 14. Rxa8 {[%clk 0:02:20]}  Qxa8 {[%clk 0:03:00]} 15. dxc6 {[%clk 0:02:20]}  Bxc6 {[%clk 0:03:01]} 16. Qe2 {[%clk 0:02:19]}  Qb7 {[%clk 0:02:57]} 17. h3 {[%clk 0:02:06]}  Ra8 {[%clk 0:02:54]} 18. Bg5 {[%clk 0:02:02]}  h6 {[%clk 0:02:54]} 19. Bd2 {[%clk 0:01:54]}  Ra2 {[%clk 0:02:53]} 20. Bc1 {[%clk 0:01:49]}  Nc5 {[%clk 0:02:52]} 21. Bb1 {[%clk 0:01:45]}  Ra1 {[%clk 0:02:52]} 22. Bc2 {[%clk 0:01:45]}  b4 {[%clk 0:02:52]} 23. Bd2 {[%clk 0:01:41]}  Rxe1+ {[%clk 0:02:50]} 24. Qxe1 {[%clk 0:01:38]}  b3 {[%clk 0:02:51]} 25. Bb1 {[%clk 0:01:37]}  Nfxe4 {[%clk 0:02:52]} 26. Nxe4 {[%clk 0:01:37]}  Nxe4 {[%clk 0:02:52]} 27. Be3 {[%clk 0:01:33]}  f5 {[%clk 0:02:53]} 28. Qe2 {[%clk 0:01:30]}  d5 {[%clk 0:02:45]} 29. Bc1 {[%clk 0:01:19]}  Bb5 {[%clk 0:02:42]} 30. Qe3 {[%clk 0:01:15]}  Qa6 {[%clk 0:02:39]} 31. Bxe4 {[%clk 0:01:10]}  fxe4 {[%clk 0:02:20]} 32. Nh4 {[%clk 0:01:01]}  Bd3 {[%clk 0:02:17]} 33. Kh2 {[%clk 0:00:57]}  d4 {[%clk 0:02:17]} 34. cxd4 {[%clk 0:00:54]}  exd4 {[%clk 0:02:18]} 35. Qg3 {[%clk 0:00:52]}  Kh7 {[%clk 0:02:17]} 36. Qc7 {[%clk 0:00:46]}  Qe6 {[%clk 0:02:17]} 37. Bf4 {[%clk 0:00:45]}  e3 {[%clk 0:02:18]} 38. fxe3 {[%clk 0:00:45]}  dxe3 {[%clk 0:02:19]} 39. Nf3 {[%clk 0:00:39]}  Bf5 {[%clk 0:01:47]} 40. Bxh6 {[%clk 0:00:32]}  Qf6 {[%clk 0:01:40]} 41. Bxg7 {[%clk 0:00:22]}  Qxg7 {[%clk 0:01:40]} 42. Qxg7+ {[%clk 0:00:18]}  Kxg7 {[%clk 0:01:41]} 43. Kg3 {[%clk 0:00:18]}  Be4 {[%clk 0:01:41]} 44. Kf4 {[%clk 0:00:17]}  Bd5 {[%clk 0:01:33]} 45. Kxe3 {[%clk 0:00:17]}  Kf6 {[%clk 0:01:34]} 46. g3 {[%clk 0:00:16]}  Be6 {[%clk 0:01:31]} 47. h4 {[%clk 0:00:15]}  Bc8 {[%clk 0:01:13]} 48. Kf4 {[%clk 0:00:15]}  Bb7 {[%clk 0:01:10]} 49. Nd4 {[%clk 0:00:15]}  Bd5 {[%clk 0:01:10]} 50. g4 {[%clk 0:00:15]}  Bf7 {[%clk 0:01:07]} 51. g5+ {[%clk 0:00:14]}  Ke7 {[%clk 0:01:07]} 52. Ke5 {[%clk 0:00:14]}  Kd7 {[%clk 0:01:08]} 53. Kf6 {[%clk 0:00:13]}  Be8 {[%clk 0:01:08]} 54. Nf3 {[%clk 0:00:12]}  Kd6 {[%clk 0:01:09]} 55. Ne5 {[%clk 0:00:12]}  Kd5 {[%clk 0:01:10]} 56. Nxg6 {[%clk 0:00:12]} 1-0


[Site "https://www.chess.com"]

[Event "Titled Tuesday Blitz February 28 Early 2023"]
[White "Zhigalko, Sergei"]
[Black "Kodinets, Konstantin L."]
[WhiteFideId "13502956"]
[BlackFideId "4122011"]
[WhiteElo "2626"]
[BlackElo "2447"]
[Result "1-0"]
[Round "03"]
[TimeControl "180+2"]
[Date "2023.02.28"]
[WhiteClock "0:00:04"]
[BlackClock "0:00:04"]

1. e4 {[%clk 0:03:00]}  e5 {[%clk 0:02:54]} 2. Nf3 {[%clk 0:03:00]}  d6 {[%clk 0:02:54]} 3. d4 {[%clk 0:03:01]}  exd4 {[%clk 0:02:55]} 4. Qxd4 {[%clk 0:03:01]}  Nf6 {[%clk 0:02:55]} 5. Nc3 {[%clk 0:03:01]}  Be7 {[%clk 0:02:55]} 6. Bg5 {[%clk 0:03:00]}  h6 {[%clk 0:02:56]} 7. Bh4 {[%clk 0:03:00]}  Nc6 {[%clk 0:02:56]} 8. Bb5 {[%clk 0:02:56]}  O-O {[%clk 0:02:56]} 9. Bxc6 {[%clk 0:02:54]}  bxc6 {[%clk 0:02:57]} 10. O-O {[%clk 0:02:48]}  Nd7 {[%clk 0:02:57]} 11. Bxe7 {[%clk 0:02:44]}  Qxe7 {[%clk 0:02:58]} 12. Rfe1 {[%clk 0:02:40]}  a5 {[%clk 0:02:58]} 13. Rad1 {[%clk 0:02:39]}  Nb6 {[%clk 0:02:56]} 14. e5 {[%clk 0:02:35]}  d5 {[%clk 0:02:56]} 15. Qf4 {[%clk 0:02:28]}  a4 {[%clk 0:02:50]} 16. h3 {[%clk 0:02:04]}  Be6 {[%clk 0:02:50]} 17. Rd3 {[%clk 0:02:02]}  c5 {[%clk 0:02:50]} 18. Nh2 {[%clk 0:01:54]}  Qg5 {[%clk 0:02:46]} 19. Qxg5 {[%clk 0:01:50]}  hxg5 {[%clk 0:02:46]} 20. Rg3 {[%clk 0:01:51]}  Bf5 {[%clk 0:02:45]} 21. Rc1 {[%clk 0:01:37]}  f6 {[%clk 0:02:44]} 22. exf6 {[%clk 0:01:34]}  gxf6 {[%clk 0:02:42]} 23. h4 {[%clk 0:01:32]}  Kf7 {[%clk 0:02:35]} 24. hxg5 {[%clk 0:01:32]}  Rg8 {[%clk 0:02:35]} 25. Nf3 {[%clk 0:01:22]}  c6 {[%clk 0:02:23]} 26. Ne2 {[%clk 0:01:14]}  fxg5 {[%clk 0:02:17]} 27. Rxg5 {[%clk 0:01:00]}  Rxg5 {[%clk 0:02:16]} 28. Nxg5+ {[%clk 0:01:01]}  Kf6 {[%clk 0:02:16]} 29. f4 {[%clk 0:00:57]}  Nc4 {[%clk 0:02:14]} 30. b3 {[%clk 0:00:41]}  Ne3 {[%clk 0:02:13]} 31. Kf2 {[%clk 0:00:29]}  d4 {[%clk 0:01:58]} 32. b4 {[%clk 0:00:26]}  cxb4 {[%clk 0:01:34]} 33. Nxd4 {[%clk 0:00:25]}  Ng4+ {[%clk 0:01:34]} 34. Kg1 {[%clk 0:00:08]}  c5 {[%clk 0:01:27]} 35. Nb5 {[%clk 0:00:05]}  Rd8 {[%clk 0:01:11]} 36. c3 {[%clk 0:00:05]}  b3 {[%clk 0:01:10]} 37. axb3 {[%clk 0:00:05]}  axb3 {[%clk 0:01:10]} 38. Na3 {[%clk 0:00:06]}  Rd2 {[%clk 0:00:49]} 39. Nc4 {[%clk 0:00:05]}  Rc2 {[%clk 0:00:47]} 40. Re1 {[%clk 0:00:04]}  Rxc3 {[%clk 0:00:46]} 41. Nd2 {[%clk 0:00:04]}  Rc2 {[%clk 0:00:22]} 42. Nxb3 {[%clk 0:00:04]}  Bc8 {[%clk 0:00:11]} 43. Ne4+ {[%clk 0:00:03]}  Kf5 {[%clk 0:00:08]} 44. Nd6+ {[%clk 0:00:04]}  Kxf4 {[%clk 0:00:08]} 45. Nxc8 {[%clk 0:00:04]}  Ne3 {[%clk 0:00:08]} 46. Kh1 {[%clk 0:00:03]}  Nxg2 {[%clk 0:00:08]} 47. Rf1+ {[%clk 0:00:03]}  Kg3 {[%clk 0:00:08]} 48. Nd6 {[%clk 0:00:03]}  Ne3 {[%clk 0:00:06]} 49. Ne4+ {[%clk 0:00:03]}  Kg4 {[%clk 0:00:05]} 50. Nf6+ {[%clk 0:00:03]}  Kg5 {[%clk 0:00:05]} 51. Ne4+ {[%clk 0:00:03]}  Kg4 {[%clk 0:00:05]} 52. Re1 {[%clk 0:00:03]}  Kf3 {[%clk 0:00:04]} 53. Ng5+ {[%clk 0:00:03]}  Kf2 {[%clk 0:00:04]} 54. Ra1 {[%clk 0:00:03]}  c4 {[%clk 0:00:04]} 55. Nd4 {[%clk 0:00:03]}  Rd2 {[%clk 0:00:04]} 56. Ne4# {[%clk 0:00:04]} 1-0


[Site "https://www.chess.com"]